fUST/lending_fUST_20241031
["ID","MTS","AMOUNT","RATE_DAILY","PERIOD"]
[341086525,1730361046754,-151.0,0.00031383,7]
[341086526,1730361046764,-288.591181,0.00031383,7]
[341086527,1730361046773,-152.621058,0.00031383,7]
[341086528,1730361046783,-152.621058,0.00031383,7]
[341086529,1730361046792,-500.0,0.00031383,5]
[341086530,1730361046801,-500.0,0.00031383,5]
[341086531,1730361046810,-151.0,0.00031383,7]
[341086532,1730361046820,-500.0,0.00031383,5]
[341086533,1730361046829,-151.0,0.00031383,7]
[341086534,1730361046839,-1924.54602829,0.00031383,2]
[341086535,1730361046909,-1064.84346745,0.00031383,2]
[341086536,1730361046937,-25.70605537,0.00031383,2]
[341088944,1730361084412,163.699804,0.00013973,2]
[341088988,1730361750673,1475.0,0.00034541,30]
[341088989,1730361750960,1414.0,0.00034541,30]
[341088990,1730361751261,1355.1897,0.00034541,30]
[341088991,1730361751581,1298.09,0.00034541,30]
[341088992,1730361751959,1245.0,0.00034541,30]
[341088993,1730361752272,1192.79608,0.00034541,30]
[341088994,1730361752573,1142.69613,0.00034541,30]
[341088995,1730361752880,1095.9733,0.00034541,30]
[341088996,1730361753211,1049.87,0.00034541,30]
[341088997,1730361754357,1005.803058,0.00034541,30]
[341088998,1730361754424,1005.512,0.00034541,30]
[341088999,1730361754475,163.273978,0.00013973,2]
[341089000,1730361754807,1005.715,0.00034541,30]
[341089001,1730361755180,881.0,0.00034541,30]
[341089002,1730361755483,843.2,0.00034541,30]
[341089003,1730361755771,808.886309,0.00034541,30]
[341089004,1730361756054,774.9984,0.00034541,30]
[341089005,1730361756352,743.0,0.00034541,30]
[341089006,1730361756877,711.67993,0.00034541,30]
[341089007,1730361757171,681.1,0.00034541,30]
[341089008,1730361757543,653.14,0.00034541,30]
[341089009,1730361757846,626.8,0.00034541,30]
[341089010,1730361758131,599.845,0.00034541,30]
[341089011,1730361758438,575.4,0.00034541,30]
[341089012,1730361758740,551.02744,0.00034541,30]
[341089014,1730361759119,528.31244,0.00034541,30]
[341089015,1730361759677,529.0,0.00034541,30]
[341089016,1730361759961,506.114,0.00034541,30]
[341089017,1730361760248,484.96113,0.00034541,30]
[341089018,1730361760548,464.618748,0.00034541,30]
[341089019,1730361760948,445.656,0.00034541,30]
[341089020,1730361761267,426.673,0.00034541,30]
[341089021,1730361761551,818.9108,0.00034541,30]
[341089022,1730361762068,749.78315,0.00034541,30]
[341089023,1730361762358,687.682,0.00034541,30]
[341089024,1730361762644,631.0,0.00034541,30]
[341089025,1730361762931,578.0,0.00034541,30]
[341089026,1730361763224,529.59,0.00034541,30]
[341089027,1730361763565,485.2613,0.00034541,30]
[341089028,1730361764261,485.75151,0.00034541,30]
[341089029,1730361764689,444.4,0.00034541,30]
[341089030,1730361765153,1222.1,0.00034541,30]
[341089031,1730361765451,917.3,0.00034541,30]
[341089032,1730361765758,688.5,0.00034541,30]
[341089033,1730361766053,515.0119,0.00034541,30]
[341089034,1730361766341,387.523,0.00034541,30]
[341089042,1730362043151,-423.0395136,0.00021286,2]
[341089043,1730362043174,-300.0,0.00021972,2]
[341089044,1730362043198,-300.0,0.00021972,2]
[341089045,1730362043221,-501.01966256,0.00021973,2]
[341089046,1730362043243,-246.07540884,0.00021973,2]
[341089047,1730362051094,-162.41269152,0.00021873,2]
[341089048,1730362051116,-30.7938519,0.00021973,2]
[341089049,1730362086369,1000000.0,0.00034543,29]
[341089051,1730362097282,1000001.0,0.00034543,29]
[341089052,1730362099522,1000002.0,0.00034543,29]
[341089053,1730362101412,1000003.0,0.00034543,29]
[341089054,1730362103574,1000004.0,0.00034543,29]
[341089055,1730362105814,1000005.0,0.00034543,29]
[341089056,1730362108719,1000006.0,0.00034543,29]
[341089057,1730362112779,1000007.0,0.00034543,29]
[341089058,1730362115508,1000008.0,0.00034543,29]
[341089059,1730362118232,1000009.0,0.00034543,29]
[341089060,1730362121558,1000010.0,0.00034543,29]
[341089061,1730362124200,1000011.0,0.00034543,29]
[341089062,1730362127869,1000012.0,0.00034543,29]
[341089063,1730362130265,1000013.0,0.00034543,29]
[341089064,1730362132588,1000014.0,0.00034543,29]
[341089065,1730362134966,1000015.0,0.00034543,29]
[341089066,1730362137403,1000016.0,0.00034543,29]
[341089067,1730362140102,1000017.0,0.00034543,29]
[341089068,1730362142338,1000018.0,0.00034543,29]
[341089070,1730362146390,1000019.0,0.00034543,29]
[341089071,1730362148259,-166.666666,0.00021918,2]
[341089072,1730362148281,-300.0,0.00021972,2]
[341089073,1730362148304,-300.0,0.00021972,2]
[341089074,1730362148327,-502.98975568,0.00021973,2]
[341089075,1730362148350,-500.21729308,0.00021973,2]
[341089076,1730362148371,-500.0,0.00021973,2]
[341089077,1730362148393,-501.68422803,0.00021973,2]
[341089078,1730362148414,-501.5700244,0.00021973,2]
[341089079,1730362148439,-502.13631797,0.00021973,2]
[341089080,1730362148460,-500.0,0.00021973,2]
[341089081,1730362148481,-500.0,0.00021973,2]
[341089082,1730362148502,-500.0,0.00021973,2]
[341089083,1730362148523,-500.0,0.00021973,2]
[341089084,1730362148548,-500.0,0.00021973,2]
[341089085,1730362148569,-500.0,0.00021973,2]
[341089086,1730362148591,-500.0,0.00021973,2]
[341089087,1730362148614,-500.0,0.00021973,2]
[341089088,1730362148642,-160.11903509,0.00021973,2]
[341089089,1730362148669,-150.390694,0.00021973,2]
[341089090,1730362148692,-500.0,0.00021973,2]
[341089091,1730362148716,-500.0,0.00021973,2]
[341089092,1730362148740,-340.15485337,0.00021973,2]
[341089093,1730362148767,-1346.14,0.00021989,3]
[341089094,1730362148791,-366.75427424,0.00021999,2]
[341089095,1730362148813,-500.0,0.00021999,2]
[341089096,1730362148834,-500.0,0.00021999,2]
[341089097,1730362148855,-500.0,0.00021999,2]
[341089098,1730362148877,-500.0,0.00021999,2]
[341089099,1730362148904,-634.67936603,0.00021999,2]
[341089100,1730362148924,-500.0,0.00021999,2]
[341089101,1730362148948,-500.0,0.00021999,2]
[341089102,1730362148970,-500.0,0.00021999,2]
[341089103,1730362148993,-500.0,0.00021999,2]
[341089104,1730362149015,-500.0,0.00021999,2]
[341089105,1730362149040,-500.0,0.00021999,2]
[341089106,1730362149066,-500.0,0.00021999,2]
[341089107,1730362149089,-427.57956593,0.00021999,2]
[341089108,1730362149113,-500.0,0.00021999,2]
[341089109,1730362149136,-289.21949543,0.00021999,2]
[341089110,1730362149159,-500.0,0.00021999,2]
[341089111,1730362149183,-500.0,0.00021999,2]
[341089112,1730362149203,-500.0,0.00021999,2]
[341089113,1730362149227,-228.73989662,0.00021999,2]
[341089114,1730362149252,-500.0,0.00021999,2]
[341089115,1730362149274,-500.0,0.00021999,2]
[341089116,1730362149297,-500.0,0.00021999,2]
[341089117,1730362149317,-500.0,0.00021999,2]
[341089118,1730362149340,-500.0,0.00021999,2]
[341089119,1730362149363,-500.0,0.00021999,2]
[341089120,1730362149384,-500.0,0.00021999,2]
[341089121,1730362149405,-500.0,0.00021999,2]
[341089122,1730362149425,-500.0,0.00021999,2]
[341089123,1730362149448,-500.0,0.00021999,2]
[341089124,1730362149470,-500.0,0.00021999,2]
[341089125,1730362149493,-500.0,0.00021999,2]
[341089126,1730362149513,-500.0,0.00021999,2]
[341089127,1730362149536,-500.0,0.00021999,2]
[341089128,1730362149557,-500.0,0.00021999,2]
[341089129,1730362149578,-209.01934587,0.00021999,2]
[341089130,1730362149600,-500.0,0.00021999,2]
[341089131,1730362149623,-500.0,0.00021999,2]
[341089132,1730362149646,-500.0,0.00021999,2]
[341089133,1730362149667,-500.0,0.00021999,2]
[341089134,1730362149690,-500.0,0.00021999,2]
[341089135,1730362149711,-500.0,0.00021999,2]
[341089136,1730362149732,-500.0,0.00021999,2]
[341089137,1730362149754,-500.0,0.00021999,2]
[341089138,1730362149779,-186.79870977,0.00021999,2]
[341089139,1730362149800,-500.0,0.00021999,2]
[341089140,1730362149821,-500.0,0.00021999,2]
[341089141,1730362149843,-500.0,0.00021999,2]
[341089142,1730362149865,-500.0,0.00021999,2]
[341089143,1730362149889,-500.0,0.00021999,2]
[341089144,1730362149911,-500.0,0.00021999,2]
[341089145,1730362149933,-500.0,0.00021999,2]
[341089146,1730362149956,-500.0,0.00021999,2]
[341089147,1730362149979,-500.0,0.00021999,2]
[341089148,1730362150003,-500.0,0.00021999,2]
[341089149,1730362150025,-500.0,0.00021999,2]
[341089150,1730362150046,-500.0,0.00021999,2]
[341089151,1730362150071,-500.0,0.00021999,2]
[341089152,1730362150091,-500.0,0.00021999,2]
[341089153,1730362150113,-500.0,0.00021999,2]
[341089154,1730362150137,-500.0,0.00021999,2]
[341089155,1730362150160,-500.0,0.00021999,2]
[341089156,1730362150181,-500.0,0.00021999,2]
[341089157,1730362150204,-500.0,0.00021999,2]
[341089158,1730362150230,-500.0,0.00021999,2]
[341089159,1730362150253,-500.0,0.00021999,2]
[341089160,1730362150276,-500.0,0.00021999,2]
[341089161,1730362150298,-500.0,0.00021999,2]
[341089162,1730362150319,-500.0,0.00021999,2]
[341089163,1730362150343,-500.0,0.00021999,2]
[341089164,1730362150367,-550.0,0.00021999,2]
[341089165,1730362150391,-500.0,0.00021999,2]
[341089166,1730362150413,-500.0,0.00021999,2]
[341089167,1730362150436,-500.0,0.00021999,2]
[341089168,1730362150458,-500.0,0.00021999,2]
[341089169,1730362150574,-500.0,0.00021999,2]
[341089170,1730362150596,-500.0,0.00021999,2]
[341089171,1730362150619,-500.0,0.00021999,2]
[341089172,1730362150645,-500.0,0.00021999,2]
[341089173,1730362150667,-500.0,0.00021999,2]
[341089174,1730362150690,-500.0,0.00021999,2]
[341089175,1730362150712,-500.0,0.00021999,2]
[341089176,1730362150733,-500.0,0.00021999,2]
[341089177,1730362150755,-500.0,0.00021999,2]
[341089178,1730362150776,-500.0,0.00021999,2]
[341089179,1730362150798,-500.0,0.00021999,2]
[341089180,1730362150820,-500.0,0.00021999,2]
[341089181,1730362150842,-500.0,0.00021999,2]
[341089182,1730362150864,-500.0,0.00021999,2]
[341089183,1730362150887,-500.0,0.00021999,2]
[341089184,1730362150910,-500.0,0.00021999,2]
[341089185,1730362150933,-500.0,0.00021999,2]
[341089186,1730362150960,-500.0,0.00021999,2]
[341089187,1730362150984,-500.0,0.00021999,2]
[341089188,1730362151006,-500.0,0.00021999,2]
[341089189,1730362151030,-500.0,0.00021999,2]
[341089190,1730362151054,-500.0,0.00021999,2]
[341089191,1730362151077,-213.50919849,0.00021999,2]
[341089192,1730362163136,-324.825383,0.00021899,2]
[341089193,1730362163157,-500.0,0.00021973,2]
[341089194,1730362163178,-500.0,0.00021973,2]
[341089195,1730362163201,-500.0,0.00021973,2]
[341089196,1730362163220,-433.48353229,0.00021973,2]
[341089197,1730362163242,-673.07,0.0002199,3]
[341089198,1730362163263,-393.60449501,0.00021998,2]
[341089199,1730362163286,-286.49080151,0.00021999,2]
[341089200,1730362163309,-500.0,0.00021999,2]
[341089201,1730362163331,-500.0,0.00021999,2]
[341089202,1730362163352,-500.0,0.00021999,2]
[341089203,1730362163374,-500.0,0.00021999,2]
[341089204,1730362163396,-500.0,0.00021999,2]
[341089205,1730362163419,-148.83429019,0.00021999,2]
[341089206,1730362165161,-500.0,0.00021973,2]
[341089207,1730362165182,-336.53,0.0002199,3]
[341089208,1730362165203,-351.16570981,0.00021999,2]
[341089209,1730362165225,-500.0,0.00021999,2]
[341089210,1730362165246,-500.0,0.00021999,2]
[341089211,1730362165266,-500.0,0.00021999,2]
[341089212,1730362165287,-500.0,0.00021999,2]
[341089213,1730362165308,-500.0,0.00021999,2]
[341089214,1730362165329,-500.0,0.00021999,2]
[341089215,1730362165350,-500.0,0.00021999,2]
[341089216,1730362165371,-500.0,0.00021999,2]
[341089217,1730362165397,-500.0,0.00021999,2]
[341089218,1730362165421,-296.25679934,0.00021999,2]
[341089219,1730362165443,-500.0,0.00021999,2]
[341089220,1730362165464,-500.0,0.00021999,2]
[341089221,1730362165485,-500.0,0.00021999,2]
[341089222,1730362165506,-500.0,0.00021999,2]
[341089223,1730362165527,-500.0,0.00021999,2]
[341089224,1730362165549,-500.0,0.00021999,2]
[341089225,1730362165574,-500.0,0.00021999,2]
[341089226,1730362165596,-500.0,0.00021999,2]
[341089227,1730362165618,-500.0,0.00021999,2]
[341089228,1730362165640,-500.0,0.00021999,2]
[341089229,1730362165662,-500.0,0.00021999,2]
[341089230,1730362165685,-500.0,0.00021999,2]
[341089231,1730362165708,-500.0,0.00021999,2]
[341089232,1730362165729,-500.0,0.00021999,2]
[341089233,1730362165751,-500.0,0.00021999,2]
[341089234,1730362165773,-500.0,0.00021999,2]
[341089235,1730362165796,-500.0,0.00021999,2]
[341089236,1730362165817,-500.0,0.00021999,2]
[341089237,1730362165838,-500.0,0.00021999,2]
[341089238,1730362165859,-500.0,0.00021999,2]
[341089239,1730362165880,-500.0,0.00021999,2]
[341089240,1730362165902,-500.0,0.00021999,2]
[341089241,1730362165923,-500.0,0.00021999,2]
[341089242,1730362165944,-500.0,0.00021999,2]
[341089243,1730362165965,-500.0,0.00021999,2]
[341089244,1730362165986,-500.0,0.00021999,2]
[341089245,1730362166007,-500.0,0.00021999,2]
[341089246,1730362166028,-500.0,0.00021999,2]
[341089247,1730362166049,-500.0,0.00021999,2]
[341089248,1730362166073,-500.0,0.00021999,2]
[341089249,1730362166093,-500.0,0.00021999,2]
[341089250,1730362166115,-500.0,0.00021999,2]
[341089251,1730362166136,-500.0,0.00021999,2]
[341089252,1730362166157,-500.0,0.00021999,2]
[341089253,1730362166178,-500.0,0.00021999,2]
[341089254,1730362166199,-500.0,0.00021999,2]
[341089255,1730362166220,-500.0,0.00021999,2]
[341089256,1730362166242,-500.0,0.00021999,2]
[341089257,1730362166266,-500.0,0.00021999,2]
[341089258,1730362166287,-500.0,0.00021999,2]
[341089259,1730362166309,-500.0,0.00021999,2]
[341089260,1730362166330,-500.0,0.00021999,2]
[341089261,1730362166352,-500.0,0.00021999,2]
[341089262,1730362166377,-500.0,0.00021999,2]
[341089263,1730362166400,-500.0,0.00021999,2]
[341089264,1730362166422,-500.0,0.00021999,2]
[341089265,1730362166443,-500.0,0.00021999,2]
[341089266,1730362166464,-500.0,0.00021999,2]
[341089267,1730362166487,-500.0,0.00021999,2]
[341089268,1730362166509,-500.0,0.00021999,2]
[341089269,1730362166531,-500.0,0.00021999,2]
[341089270,1730362166552,-500.0,0.00021999,2]
[341089271,1730362166574,-500.0,0.00021999,2]
[341089272,1730362166608,-500.0,0.00021999,2]
[341089273,1730362166633,-500.0,0.00021999,2]
[341089274,1730362166655,-219.14260192,0.00021999,2]
[341089275,1730362166676,-500.0,0.00021999,2]
[341089276,1730362166698,-500.0,0.00021999,2]
[341089277,1730362166857,-500.0,0.00021999,2]
[341089278,1730362166879,-500.0,0.00021999,2]
[341089279,1730362166902,-500.0,0.00021999,2]
[341089280,1730362166924,-500.0,0.00021999,2]
[341089281,1730362166946,-500.0,0.00021999,2]
[341089282,1730362166970,-500.0,0.00021999,2]
[341089283,1730362166991,-500.0,0.00021999,2]
[341089284,1730362167012,-500.0,0.00021999,2]
[341089285,1730362167034,-500.0,0.00021999,2]
[341089286,1730362167055,-500.0,0.00021999,2]
[341089287,1730362167080,-559.64430108,0.00021999,2]
[341089288,1730362167107,-500.0,0.00021999,2]
[341089289,1730362167133,-500.0,0.00021999,2]
[341089290,1730362167163,-500.0,0.00021999,2]
[341089291,1730362167184,-500.0,0.00021999,2]
[341089292,1730362167205,-500.0,0.00021999,2]
[341089293,1730362167225,-500.0,0.00021999,2]
[341089294,1730362167251,-500.0,0.00021999,2]
[341089295,1730362167273,-500.0,0.00021999,2]
[341089296,1730362167294,-500.0,0.00021999,2]
[341089297,1730362167315,-500.0,0.00021999,2]
[341089298,1730362167336,-500.0,0.00021999,2]
[341089299,1730362167359,-550.0,0.00021999,2]
[341089300,1730362167381,-500.0,0.00021999,2]
[341089301,1730362167406,-500.0,0.00021999,2]
[341089302,1730362167428,-500.0,0.00021999,2]
[341089303,1730362167451,-500.0,0.00021999,2]
[341089304,1730362167475,-500.0,0.00021999,2]
[341089305,1730362167501,-500.0,0.00021999,2]
[341089306,1730362167523,-500.0,0.00021999,2]
[341089307,1730362167545,-500.0,0.00021999,2]
[341089308,1730362167568,-500.0,0.00021999,2]
[341089309,1730362167590,-300.0,0.00021999,2]
[341089310,1730362167612,-500.0,0.00021999,2]
[341089311,1730362167633,-500.0,0.00021999,2]
[341089312,1730362167656,-500.0,0.00021999,2]
[341089313,1730362167677,-500.0,0.00021999,2]
[341089314,1730362167699,-500.0,0.00021999,2]
[341089315,1730362167720,-500.0,0.00021999,2]
[341089316,1730362167742,-500.0,0.00021999,2]
[341089317,1730362167764,-500.0,0.00021999,2]
[341089318,1730362167785,-500.0,0.00021999,2]
[341089319,1730362167806,-500.0,0.00021999,2]
[341089320,1730362167828,-477.25810928,0.00021999,2]
[341089321,1730362167850,-227.93754649,0.00021999,2]
[341089322,1730362167872,-500.0,0.00021999,2]
[341089323,1730362167897,-500.0,0.00021999,2]
[341089324,1730362167920,-500.0,0.00021999,2]
[341089325,1730362167946,-500.0,0.00021999,2]
[341089326,1730362167973,-500.0,0.00021999,2]
[341089327,1730362167996,-500.0,0.00021999,2]
[341089328,1730362168018,-515.04675929,0.00021999,2]
[341089329,1730362168038,-294.80855103,0.00021999,2]
[341089330,1730362168060,-500.0,0.00021999,2]
[341089331,1730362168088,-500.0,0.00021999,2]
[341089332,1730362168110,-500.0,0.00021999,2]
[341089333,1730362168131,-266.48323602,0.00021999,2]
[341089334,1730362168156,-500.0,0.00021999,2]
[341089335,1730362168178,-500.0,0.00021999,2]
[341089336,1730362168199,-500.0,0.00021999,2]
[341089337,1730362168222,-500.0,0.00021999,2]
[341089338,1730362168245,-288.71331316,0.00021999,2]
[341089339,1730362168266,-500.0,0.00021999,2]
[341089340,1730362168289,-500.0,0.00021999,2]
[341089341,1730362168310,-515.04675929,0.00021999,2]
[341089342,1730362168332,-504.97254375,0.00021999,2]
[341089343,1730362168355,-500.0,0.00021999,2]
[341089344,1730362168376,-515.04675929,0.00021999,2]
[341089345,1730362168401,-500.0,0.00021999,2]
[341089346,1730362168423,-515.04675929,0.00021999,2]
[341089347,1730362168446,-500.0,0.00021999,2]
[341089348,1730362168469,-500.0,0.00021999,2]
[341089349,1730362168494,-515.04675929,0.00021999,2]
[341089350,1730362168518,-500.0,0.00021999,2]
[341089351,1730362168541,-500.0,0.00021999,2]
[341089352,1730362168562,-6858.52045199,0.00022,2]
[341089353,1730362168804,-62528.55896,0.00022,2]
[341089354,1730362174094,-3317.97678719,0.00022,2]
[341089355,1730362174115,-162.7193127,0.00022008,2]
[341089356,1730362174142,-1117.6508188,0.00022276,2]
[341089357,1730362174164,-166.666666,0.00022431,2]
[341089358,1730362174185,-573.8799664,0.00022484,2]
[341089359,1730362174206,-166.666666,0.00022944,2]
[341089360,1730362174226,-201.0,0.00023,2]
[341089361,1730362174247,-250.0,0.00023069,2]
[341089362,1730362174267,-434.64503867,0.00023142,2]
[341089363,1730362174288,-426.13331781,0.00023142,2]
[341089364,1730362174308,-500.0,0.00023142,2]
[341089365,1730362174328,-261.96777713,0.00023142,2]
[341089366,1730362174349,-155.27128773,0.00023142,2]
[341089431,1730362238675,-157.74344498,0.00021973,2]
[341089432,1730362238685,-500.0,0.00021973,2]
[341089433,1730362238696,-300.0,0.00021997,2]
[341089434,1730362238705,-300.0,0.00021997,2]
[341089435,1730362238714,-266.48323602,0.00021998,2]
[341089436,1730362238724,-250.0,0.00022032,2]
[341089437,1730362238734,-250.0,0.00022092,2]
[341089438,1730362238743,-250.0,0.00022153,2]
[341089439,1730362238752,-250.0,0.00022213,2]
[341089440,1730362238762,-250.0,0.00022274,2]
[341089441,1730362238771,-250.0,0.00022334,2]
[341089442,1730362238780,-250.0,0.00022394,2]
[341089443,1730362238789,-250.0,0.00022455,2]
[341089444,1730362238799,-250.0,0.00022515,2]
[341089445,1730362238808,-250.0,0.00022576,2]
[341089446,1730362238817,-250.0,0.00022636,2]
[341089447,1730362238827,-250.0,0.00022696,2]
[341089448,1730362238836,-250.0,0.00022757,2]
[341089449,1730362238845,-250.0,0.00022817,2]
[341089450,1730362238854,-250.0,0.00022878,2]
[341089451,1730362238863,-250.0,0.00022938,2]
[341089452,1730362238873,-250.0,0.00022998,2]
[341089454,1730362238882,-250.0,0.00023059,2]
[341089455,1730362238891,-250.0,0.00023119,2]
[341089456,1730362238901,-325.62043051,0.00023142,2]
[341089457,1730362238910,-615.42584429,0.00023142,2]
[341089458,1730362238919,-500.0,0.00023142,2]
[341089459,1730362238929,-500.0,0.00023142,2]
[341089460,1730362238938,-500.0,0.00023142,2]
[341089461,1730362238947,-500.0,0.00023142,2]
[341089462,1730362238956,-500.0,0.00023142,2]
[341089463,1730362238965,-323.16273894,0.00023142,2]
[341089466,1730362240619,-176.83726106,0.00023142,2]
[341089467,1730362240631,-500.0,0.00023142,2]
[341089468,1730362240642,-500.0,0.00023142,2]
[341089469,1730362240654,-436.95023441,0.00023142,2]
[341089470,1730362240665,-500.0,0.00023142,2]
[341089471,1730362240676,-500.0,0.00023142,2]
[341089472,1730362240686,-500.0,0.00023142,2]
[341089473,1730362240695,-500.0,0.00023142,2]
[341089474,1730362240714,-500.0,0.00023142,2]
[341089475,1730362240724,-500.0,0.00023142,2]
[341089476,1730362240734,-500.0,0.00023142,2]
[341089477,1730362240743,-387.14685793,0.00023142,2]
[341089478,1730362240753,-500.0,0.00023142,2]
[341089479,1730362240762,-500.0,0.00023142,2]
[341089480,1730362240771,-500.0,0.00023142,2]
[341089481,1730362240782,-500.0,0.00023142,2]
[341089482,1730362240793,-500.0,0.00023142,2]
[341089483,1730362240805,-500.0,0.00023142,2]
[341089484,1730362240816,-500.0,0.00023142,2]
[341089485,1730362240827,-500.0,0.00023142,2]
[341089486,1730362240837,-500.0,0.00023142,2]
[341089487,1730362240847,-500.0,0.00023142,2]
[341089488,1730362240857,-500.0,0.00023142,2]
[341089489,1730362240867,-500.0,0.00023142,2]
[341089490,1730362240876,-500.0,0.00023142,2]
[341089491,1730362240886,-500.0,0.00023142,2]
[341089492,1730362240896,-500.0,0.00023142,2]
[341089493,1730362240907,-500.0,0.00023142,2]
[341089494,1730362240919,-500.0,0.00023142,2]
[341089495,1730362240929,-500.0,0.00023142,2]
[341089496,1730362240938,-500.0,0.00023142,2]
[341089497,1730362240949,-500.0,0.00023142,2]
[341089498,1730362240960,-500.0,0.00023142,2]
[341089499,1730362240969,-500.0,0.00023142,2]
[341089500,1730362240979,-500.0,0.00023142,2]
[341089501,1730362240988,-500.0,0.00023142,2]
[341089502,1730362240997,-500.0,0.00023142,2]
[341089503,1730362241007,-500.0,0.00023142,2]
[341089504,1730362241016,-500.0,0.00023142,2]
[341089505,1730362241026,-500.0,0.00023142,2]
[341089506,1730362241036,-500.0,0.00023142,2]
[341089507,1730362241045,-500.0,0.00023142,2]
[341089508,1730362241054,-500.0,0.00023142,2]
[341089509,1730362241065,-500.0,0.00023142,2]
[341089510,1730362241074,-500.0,0.00023142,2]
[341089511,1730362241083,-453.96635773,0.00023142,2]
[341089512,1730362241102,-46.03364227,0.00023142,2]
[341089513,1730362241115,-439.77635773,0.00023142,2]
[341089514,1730362241136,-60.22364227,0.00023142,2]
[341089515,1730362241149,-500.0,0.00023142,2]
[341089516,1730362241158,-500.0,0.00023142,2]
[341089517,1730362241167,-500.0,0.00023142,2]
[341089518,1730362241177,-537.86907017,0.00023142,2]
[341089519,1730362241187,-500.0,0.00023142,2]
[341089521,1730362241196,-500.0,0.00023142,2]
[341089522,1730362241207,-500.0,0.00023142,2]
[341089523,1730362241217,-500.0,0.00023142,2]
[341089524,1730362241227,-500.0,0.00023142,2]
[341089525,1730362241237,-500.0,0.00023142,2]
[341089526,1730362241247,-500.0,0.00023142,2]
[341089527,1730362241257,-500.0,0.00023142,2]
[341089528,1730362241266,-500.0,0.00023142,2]
[341089529,1730362241275,-500.0,0.00023142,2]
[341089530,1730362241286,-24900.0,0.00023143,2]
[341089531,1730362241295,-250.0,0.0002318,2]
[341089532,1730362241306,-483.9761621,0.00023188,2]
[341089533,1730362241315,-358.277945,0.00023323,2]
[341089534,1730362241326,-2468.86250321,0.00023323,2]
[341089535,1730362241336,-2692.28,0.00023359,3]
[341089536,1730362241345,-1346.14,0.0002336,3]
[341089537,1730362241355,-673.06,0.0002336,3]
[341089538,1730362241364,-3196.2566407,0.00023416,2]
[341089539,1730362241373,-166.666666,0.00023456,2]
[341089540,1730362241382,-1506.631504,0.00023527,2]
[341089541,1730362241391,-178.9012465,0.00023836,2]
[341089542,1730362241402,-420.0,0.00023903,2]
[341089543,1730362241411,-166.666666,0.00023969,2]
[341089544,1730362241421,-420.0,0.00024197,2]
[341089545,1730362241430,-1506.631504,0.00024212,2]
[341089546,1730362241440,-5000.0,0.00024443,2]
[341089547,1730362241451,-429.08994655,0.00024443,2]
[341089548,1730362241460,-241.75907467,0.00024443,2]
[341089549,1730362241470,-19330.08990666,0.00024444,8]
[341089550,1730362241479,-166.666666,0.00024482,2]
[341089551,1730362241488,-194.2327896,0.00024558,2]
[341089552,1730362241497,-150.0,0.00024658,2]